Workbook

Sheet Västerås
A1: Prisexempel 2025- Västerås
A3: Här ser du prisexempel fjärrvärmekostnad för småhus, flerbostadshus, lokaler och samfälligheter. Alla summor är inkl.moms.
A5: Kategori Småhus Västerås
D7: Vinter | E7: Vår/Höst | G7: Sommar
A8: Rörligt Pris | D8: 975 | E8: 780 | F8: 460 | G8: 265 | H8: Kr/MWh
A10: Fast Småhus | F10: 5,580 | H10: Kr/år
A12: Årlig fbr (MWh) | C12: Total årskostnad | E12: Varav fast del | H12: Varav rörlig del | M12: Fördelningsnyckel
M13: Vinter | N13: Vår/Höst | O13: Sommar
A14: 15 | C14: =E14+H14 -> 18,031 | E14: =$F$10 -> 5,580 | H14: =A14*$M$14*$D$8+A14*$N$14*$E$8+A14*$O$14*$G$8 -> 12,451 | J14: 500.0 | L14: Småhus | M14: 44.0% | N14: 49.0% | O14: 6.9% | T14: 16549
A15: 20 | C15: =E15+H15 -> 22,181 | E15: =$F$10 -> 5,580 | H15: =A15*$M$14*$D$8+A15*$N$14*$E$8+A15*$O$14*$G$8 -> 16,601 | T15: 20205
A16: 30 | C16: =E16+H16 -> 30,481 | E16: 5,580 | H16: =A16*$M$14*$D$8+A16*$N$14*$E$8+A16*$O$14*$G$8 -> 24,901 | T16: 27518
A17: 40 | C17: =E17+H17 -> 38,782 | E17: 5,580 | H17: =A17*$M$14*$D$8+A17*$N$14*$E$8+A17*$O$14*$G$8 -> 33,202 | Q17: =B22*P20 -> 19897.5 | R17: =A22*Q20 -> 20550 | T17: 34831
A19: Kategori Flerbostadshus Västerås | H19: 1900
A20: MAX Effekt | B20: BAS Effekt | C20: Årlig fbr (MWh) | D20: Total årskostnad | F20: Varav fast del | H20: Varav rörlig del | N20: 10-24 | O20: 452.5 | P20: 1421.25 | Q20: 856.25 | S20: Bas | T20: 572.5
F21: Fast avg | G21: Ansleffektavgift | J21: Bas | K21: Spets | L21: Sommar | N21: 25-79 | O21: 3033.75 | P21: 1318.75 | Q21: 856.25 | S21: Spets | T21: 1500
A22: 24 | B22: 14 | C22: 80 | D22: =SUM(F22:H22) -> 88,767 | F22: =IF(B22<25,$O$20,IF(B22<80,$O$21,IF(B22<150,$O$22,IF(B22<250,$O$23,IF(B22<500,$O$24,$O$25))))) -> 453 | G22: =IF(B22<25,B22*$P$20+A22*$Q$20,IF(B22<80,B22*$P$21+A22*$Q$21,IF(B22<150,B22*$P$22+A22*$Q$22,IF(B22<250,B22*$P$23+A22*$Q$23,IF(B22<500,B22*$P$24+A22*$Q$24,B22*$P$25+A22*$Q$25))))) -> 40,448 | H22: =(J22*$T$20+K22*$T$21+L22*$T$22) -> 47,867 | J22: 69.291 | K22: 4.491 | L22: 6.218 | N22: 80-149 | O22: 14072.5 | P22: 1181.25 | Q22: 856.25 | S22: Sommar | T22: 235
A23: 57 | B23: 36 | C23: 193 | D23: =SUM(F23:H23) -> 211,630 | F23: =IF(B23<25,$O$20,IF(B23<80,$O$21,IF(B23<150,$O$22,IF(B23<250,$O$23,IF(B23<500,$O$24,$O$25))))) -> 3,034 | G23: =IF(B23<25,B23*$P$20+A23*$Q$20,IF(B23<80,B23*$P$21+A23*$Q$21,IF(B23<150,B23*$P$22+A23*$Q$22,IF(B23<250,B23*$P$23+A23*$Q$23,IF(B23<500,B23*$P$24+A23*$Q$24,B23*$P$25+A23*$Q$25))))) -> 96,281 | H23: =(J23*$T$20+K23*$T$21+L23*$T$22) -> 112,315 | J23: 170.577 | K23: 7.423 | L23: 15.000 | N23: 150-249 | O23: 39480 | P23: 1012.5 | Q23: 856.25
A24: 148 | B24: 95 | C24: 500 | D24: =SUM(F24:H24) -> 541,859 | F24: =IF(B24<25,$O$20,IF(B24<80,$O$21,IF(B24<150,$O$22,IF(B24<250,$O$23,IF(B24<500,$O$24,$O$25))))) -> 14,073 | G24: 238,944 | H24: =(J24*$T$20+K24*$T$21+L24*$T$22) -> 288,842 | J24: 444.206 | K24: 16.935 | L24: 38.859 | N24: 250-499 | O24: 98075 | P24: 778.75 | Q24: 856.25
A25: 295 | B25: 197 | C25: 1000 | D25: =SUM(F25:H25) -> 1,063,498 | F25: =IF(B25<25,$O$20,IF(B25<80,$O$21,IF(B25<150,$O$22,IF(B25<250,$O$23,IF(B25<500,$O$24,$O$25))))) -> 39,480 | G25: 452,056 | H25: =(J25*$T$20+K25*$T$21+L25*$T$22) -> 571,962 | J25: 891.47 | K25: 28.53 | L25: 80.000 | N25: >500 | O25: 212018.75 | P25: 551.25 | Q25: 856.25
A27: Kategori Lokaler Västerås | H27: 1700
A28: Ansl effekt | B28: BAS Effekt | C28: Årlig fbr (MWh) | D28: Total årskostnad | F28: Varav fast del | H28: Varav rörlig del | N28: 10-24 | O28: 452.5 | P28: 1421.25 | Q28: 856.25 | S28: Bas | T28: 572.5
F29: Fast avg | G29: Ansleffektavgift | J29: Bas | K29: Spets | L29: Sommar | N29: 25-79 | O29: 3033.75 | P29: 1318.75 | Q29: 856.25 | S29: Spets | T29: 1500
A30: 24 | B30: 14 | C30: 80 | D30: =SUM(F30:H30) -> 88,767 | F30: =IF(B30<25,$O$28,IF(B30<80,$O$29,IF(B30<150,$O$30,IF(B30<250,$O$31,IF(B30<500,$O$32,$O$33))))) -> 453 | G30: =IF(B30<25,B30*$P$28+A30*$Q$28,IF(B30<80,B30*$P$29+A30*$Q$29,IF(B30<150,B30*$P$30+A30*$Q$30,IF(B30<250,B30*$P$31+A30*$Q$31,IF(B30<500,B30*$P$32+A30*$Q$32,B30*$P$33+A30*$Q$33))))) -> 40,448 | H30: =(J30*$T$28+K30*$T$29+L30*$T$30) -> 47,867 | J30: 69.291 | K30: 4.491 | L30: 6.218 | N30: 80-149 | O30: 14072.5 | P30: 1181.25 | Q30: 856.25 | S30: Sommar | T30: 235
A31: 57 | B31: 36 | C31: 193 | D31: =SUM(F31:H31) -> 211,630 | F31: =IF(B31<25,$O$28,IF(B31<80,$O$29,IF(B31<150,$O$30,IF(B31<250,$O$31,IF(B31<500,$O$32,$O$33))))) -> 3,034 | G31: =IF(B31<25,B31*$P$28+A31*$Q$28,IF(B31<80,B31*$P$29+A31*$Q$29,IF(B31<150,B31*$P$30+A31*$Q$30,IF(B31<250,B31*$P$31+A31*$Q$31,IF(B31<500,B31*$P$32+A31*$Q$32,B31*$P$33+A31*$Q$33))))) -> 96,281 | H31: =(J31*$T$28+K31*$T$29+L31*$T$30) -> 112,315 | J31: 170.577 | K31: 7.423 | L31: 15.000 | N31: 150-249 | O31: 39480 | P31: 1012.5 | Q31: 856.25
A32: 148 | B32: 95 | C32: 500 | D32: =SUM(F32:H32) -> 541,859 | F32: 14,073 | G32: 238,944 | H32: =(J32*$T$28+K32*$T$29+L32*$T$30) -> 288,842 | J32: 444.206 | K32: 16.935 | L32: 38.859 | N32: 250-499 | O32: 98075 | P32: 778.75 | Q32: 856.25
A33: 295 | B33: 197 | C33: 1000 | D33: =SUM(F33:H33) -> 1,063,498 | F33: =IF(B33<25,$O$28,IF(B33<80,$O$29,IF(B33<150,$O$30,IF(B33<250,$O$31,IF(B33<500,$O$32,$O$33))))) -> 39,480 | G33: 452,056 | H33: =(J33*$T$28+K33*$T$29+L33*$T$30) -> 571,962 | J33: 891.47 | K33: 28.53 | L33: 80.000 | N33: >500 | O33: 212018.75 | P33: 551.25 | Q33: 856.25
A35: Kategori Samfälligheter Västerås | H35: 2100
A37: Ansl effekt | B37: BAS Effekt | C37: Årlig fbr (MWh) | D37: Total årskostnad | F37: Varav fast del | H37: Varav rörlig del | N37: 10-24 | O37: 337.5 | P37: 1167.5 | Q37: 706.25 | S37: Bas | T37: 572.5
F38: Fast avg | G38: Ansleffektavgift | J38: Bas | K38: Spets | L38: Sommar | N38: 25-79 | O38: 2226.25 | P38: 1092.5 | Q38: 706.25 | S38: Spets | T38: 1500
A39: 24 | B39: 14 | C39: 80 | D39: =SUM(F39:H39) -> 81,499 | F39: =IF(B39<25,$O$37,IF(B39<80,$O$38,IF(B39<150,$O$39,IF(B39<250,$O$40,IF(B39<500,$O$41,$O$42))))) -> 338 | G39: =IF(B39<25,B39*$P$37+A39*$Q$37,IF(B39<80,B39*$P$38+A39*$Q$38,IF(B39<150,B39*$P$39+A39*$Q$39,IF(B39<250,B39*$P$40+A39*$Q$40,IF(B39<500,B39*$P$41+A39*$Q$41,B39*$P$42+A39*$Q$42))))) -> 33,295 | H39: =(J39*$T$37+K39*$T$38+L39*$T$39) -> 47,867 | J39: 69.291 | K39: 4.491 | L39: 6.218 | N39: 80-149 | O39: 12653.75 | P39: 962.5 | Q39: 706.25 | S39: Sommar | T39: 235
A40: 57 | B40: 35 | C40: 193 | D40: =SUM(F40:H40) -> 194,368 | F40: =IF(B40<25,$O$37,IF(B40<80,$O$38,IF(B40<150,$O$39,IF(B40<250,$O$40,IF(B40<500,$O$41,$O$42))))) -> 2,226 | G40: =IF(B40<25,B40*$P$37+A40*$Q$37,IF(B40<80,B40*$P$38+A40*$Q$38,IF(B40<150,B40*$P$39+A40*$Q$39,IF(B40<250,B40*$P$40+A40*$Q$40,IF(B40<500,B40*$P$41+A40*$Q$41,B40*$P$42+A40*$Q$42))))) -> 78,494 | H40: =(J40*$T$37+K40*$T$38+L40*$T$39) -> 113,648 | J40: 169.14 | K40: 8.86 | L40: 15.000 | N40: 150-249 | O40: 33926.25 | P40: 821.25 | Q40: 706.25
A41: 148 | B41: 94 | C41: 500 | D41: =SUM(F41:H41) -> 497,696 | F41: 12,654 | G41: 195,000 | H41: =(J41*$T$37+K41*$T$38+L41*$T$39) -> 290,042 | J41: 442.912 | K41: 18.229 | L41: 38.859 | N41: 250-499 | O41: 80312.5 | P41: 636.25 | Q41: 706.25
A42: 295 | B42: 197 | C42: 1000 | D42: =SUM(F42:H42) -> 976,018 | F42: 33,926 | G42: 370,130 | H42: =(J42*$T$37+K42*$T$38+L42*$T$39) -> 571,962 | J42: 891.47 | K42: 28.53 | L42: 80.000 | N42: >500 | O42: 176100 | P42: 445 | Q42: 706.25

Sheet Hallstahammar
A1: Prisexempel 2025- Hallstahammar
A3: Här ser du prisexempel fjärrvärmekostnad för småhus, flerbostadshus, lokaler och samfälligheter. Alla summor är inkl.moms.
A5: Kategori Småhus Hallstahammar
D7: Vinter | E7: Vår/Höst | G7: Sommar
A8: Rörligt Pris | D8: 975 | E8: 780 | F8: 460 | G8: 265 | H8: Kr/MWh
A10: Fast Småhus | F10: 5,580 | H10: Kr/år
A12: Årlig fbr (MWh) | C12: Total årskostnad | E12: Varav fast del | H12: Varav rörlig del | M12: Fördelningsnyckel
M13: Vinter | N13: Vår/Höst | O13: Sommar
A14: 15 | C14: =E14+H14 -> 18,031 | E14: =$F$10 -> 5,580 | H14: =A14*$M$14*$D$8+A14*$N$14*$E$8+A14*$O$14*$G$8 -> 12,451 | J14: 500.0 | L14: Småhus | M14: 44.0% | N14: 49.0% | O14: 6.9%
A15: 20 | C15: =E15+H15 -> 22,181 | E15: =$F$10 -> 5,580 | H15: =A15*$M$14*$D$8+A15*$N$14*$E$8+A15*$O$14*$G$8 -> 16,601
A16: 30 | C16: =E16+H16 -> 30,481 | E16: 5,580 | H16: =A16*$M$14*$D$8+A16*$N$14*$E$8+A16*$O$14*$G$8 -> 24,901
A17: 40 | C17: =E17+H17 -> 38,782 | E17: 5,580 | H17: =A17*$M$14*$D$8+A17*$N$14*$E$8+A17*$O$14*$G$8 -> 33,202
A19: Kategori Flerbostadshus Hallstahammar | H19: 1900
A20: MAX Effekt | B20: BAS Effekt | C20: Årlig fbr (MWh) | D20: Total årskostnad | F20: Varav fast del | H20: Varav rörlig del | N20: 10-24 | O20: 452.5 | P20: 1421.25 | Q20: 856.25 | S20: Bas | T20: 572.5
F21: Fast avg | G21: Ansleffektavgift | J21: Bas | K21: Spets | L21: Sommar | N21: 25-79 | O21: 3033.75 | P21: 1318.75 | Q21: 856.25 | S21: Spets | T21: 1500
A22: 24 | B22: 15 | C22: 80 | D22: =SUM(F22:H22) -> 90,188 | F22: =IF(B22<25,$O$20,IF(B22<80,$O$21,IF(B22<150,$O$22,IF(B22<250,$O$23,IF(B22<500,$O$24,$O$25))))) -> 453 | G22: =IF(B22<25,B22*$P$20+A22*$Q$20,IF(B22<80,B22*$P$21+A22*$Q$21,IF(B22<150,B22*$P$22+A22*$Q$22,IF(B22<250,B22*$P$23+A22*$Q$23,IF(B22<500,B22*$P$24+A22*$Q$24,B22*$P$25+A22*$Q$25))))) -> 41,869 | H22: =(J22*$T$20+K22*$T$21+L22*$T$22) -> 47,867 | J22: 69.291 | K22: 4.491 | L22: 6.218 | N22: 80-149 | O22: 14072.5 | P22: 1181.25 | Q22: 856.25 | S22: Sommar | T22: 235
A23: 57 | B23: 36 | C23: 193 | D23: =SUM(F23:H23) -> 211,630 | F23: =IF(B23<25,$O$20,IF(B23<80,$O$21,IF(B23<150,$O$22,IF(B23<250,$O$23,IF(B23<500,$O$24,$O$25))))) -> 3,034 | G23: =IF(B23<25,B23*$P$20+A23*$Q$20,IF(B23<80,B23*$P$21+A23*$Q$21,IF(B23<150,B23*$P$22+A23*$Q$22,IF(B23<250,B23*$P$23+A23*$Q$23,IF(B23<500,B23*$P$24+A23*$Q$24,B23*$P$25+A23*$Q$25))))) -> 96,281 | H23: =(J23*$T$20+K23*$T$21+L23*$T$22) -> 112,315 | J23: 170.577 | K23: 7.423 | L23: 15.000 | N23: 150-249 | O23: 39480 | P23: 1012.5 | Q23: 856.25
A24: 148 | B24: 95 | C24: 500 | D24: =SUM(F24:H24) -> 541,859 | F24: =IF(B24<25,$O$20,IF(B24<80,$O$21,IF(B24<150,$O$22,IF(B24<250,$O$23,IF(B24<500,$O$24,$O$25))))) -> 14,073 | G24: 238,944 | H24: =(J24*$T$20+K24*$T$21+L24*$T$22) -> 288,842 | J24: 444.206 | K24: 16.935 | L24: 38.859 | N24: 250-499 | O24: 98075 | P24: 778.75 | Q24: 856.25
A25: 295 | B25: 197 | C25: 1000 | D25: =SUM(F25:H25) -> 1,063,498 | F25: =IF(B25<25,$O$20,IF(B25<80,$O$21,IF(B25<150,$O$22,IF(B25<250,$O$23,IF(B25<500,$O$24,$O$25))))) -> 39,480 | G25: 452,056 | H25: =(J25*$T$20+K25*$T$21+L25*$T$22) -> 571,962 | J25: 891.47 | K25: 28.53 | L25: 80.000 | N25: >500 | O25: 212018.75 | P25: 551.25 | Q25: 856.25
A27: Kategori Lokaler Hallstahammar | H27: 1700
A28: Ansl effekt | B28: BAS Effekt | C28: Årlig fbr (MWh) | D28: Total årskostnad | F28: Varav fast del | H28: Varav rörlig del | N28: 10-24 | O28: 452.5 | P28: 1421.25 | Q28: 856.25 | S28: Bas | T28: 572.5
F29: Fast avg | G29: Ansleffektavgift | J29: Bas | K29: Spets | L29: Sommar | N29: 25-79 | O29: 3033.75 | P29: 1318.75 | Q29: 856.25 | S29: Spets | T29: 1500
A30: 24 | B30: 15 | C30: 80 | D30: =SUM(F30:H30) -> 90,188 | F30: =IF(B30<25,$O$28,IF(B30<80,$O$29,IF(B30<150,$O$30,IF(B30<250,$O$31,IF(B30<500,$O$32,$O$33))))) -> 453 | G30: =IF(B30<25,B30*$P$28+A30*$Q$28,IF(B30<80,B30*$P$29+A30*$Q$29,IF(B30<150,B30*$P$30+A30*$Q$30,IF(B30<250,B30*$P$31+A30*$Q$31,IF(B30<500,B30*$P$32+A30*$Q$32,B30*$P$33+A30*$Q$33))))) -> 41,869 | H30: =(J30*$T$28+K30*$T$29+L30*$T$30) -> 47,867 | J30: 69.291 | K30: 4.491 | L30: 6.218 | N30: 80-149 | O30: 14072.5 | P30: 1181.25 | Q30: 856.25 | S30: Sommar | T30: 235
A31: 57 | B31: 36 | C31: 193 | D31: =SUM(F31:H31) -> 211,630 | F31: =IF(B31<25,$O$28,IF(B31<80,$O$29,IF(B31<150,$O$30,IF(B31<250,$O$31,IF(B31<500,$O$32,$O$33))))) -> 3,034 | G31: =IF(B31<25,B31*$P$28+A31*$Q$28,IF(B31<80,B31*$P$29+A31*$Q$29,IF(B31<150,B31*$P$30+A31*$Q$30,IF(B31<250,B31*$P$31+A31*$Q$31,IF(B31<500,B31*$P$32+A31*$Q$32,B31*$P$33+A31*$Q$33))))) -> 96,281 | H31: =(J31*$T$28+K31*$T$29+L31*$T$30) -> 112,315 | J31: 170.577 | K31: 7.423 | L31: 15.000 | N31: 150-249 | O31: 39480 | P31: 1012.5 | Q31: 856.25
A32: 148 | B32: 95 | C32: 500 | D32: =SUM(F32:H32) -> 541,859 | F32: 14,073 | G32: 238,944 | H32: =(J32*$T$28+K32*$T$29+L32*$T$30) -> 288,842 | J32: 444.206 | K32: 16.935 | L32: 38.859 | N32: 250-499 | O32: 98075 | P32: 778.75 | Q32: 856.25
A33: 295 | B33: 197 | C33: 1000 | D33: =SUM(F33:H33) -> 1,063,498 | F33: =IF(B33<25,$O$28,IF(B33<80,$O$29,IF(B33<150,$O$30,IF(B33<250,$O$31,IF(B33<500,$O$32,$O$33))))) -> 39,480 | G33: 452,056 | H33: =(J33*$T$28+K33*$T$29+L33*$T$30) -> 571,962 | J33: 891.47 | K33: 28.53 | L33: 80.000 | N33: >500 | O33: 212018.75 | P33: 551.25 | Q33: 856.25
A35: Kategori Samfälligheter Hallstahammar | H35: 2100
A37: Ansl effekt | B37: BAS Effekt | C37: Årlig fbr (MWh) | D37: Total årskostnad | F37: Varav fast del | H37: Varav rörlig del | N37: 10-24 | O37: 337.5 | P37: 1167.5 | Q37: 706.25 | S37: Bas | T37: 572.5
F38: Fast avg | G38: Ansleffektavgift | J38: Bas | K38: Spets | L38: Sommar | N38: 25-79 | O38: 2226.25 | P38: 1092.5 | Q38: 706.25 | S38: Spets | T38: 1500
A39: 24 | B39: 15 | C39: 80 | D39: =SUM(F39:H39) -> 82,667 | F39: =IF(B39<25,$O$37,IF(B39<80,$O$38,IF(B39<150,$O$39,IF(B39<250,$O$40,IF(B39<500,$O$41,$O$42))))) -> 338 | G39: =IF(B39<25,B39*$P$37+A39*$Q$37,IF(B39<80,B39*$P$38+A39*$Q$38,IF(B39<150,B39*$P$39+A39*$Q$39,IF(B39<250,B39*$P$40+A39*$Q$40,IF(B39<500,B39*$P$41+A39*$Q$41,B39*$P$42+A39*$Q$42))))) -> 34,463 | H39: =(J39*$T$37+K39*$T$38+L39*$T$39) -> 47,867 | J39: 69.291 | K39: 4.491 | L39: 6.218 | N39: 80-149 | O39: 12653.75 | P39: 962.5 | Q39: 706.25 | S39: Sommar | T39: 235
A40: 57 | B40: 35 | C40: 193 | D40: =SUM(F40:H40) -> 194,368 | F40: =IF(B40<25,$O$37,IF(B40<80,$O$38,IF(B40<150,$O$39,IF(B40<250,$O$40,IF(B40<500,$O$41,$O$42))))) -> 2,226 | G40: =IF(B40<25,B40*$P$37+A40*$Q$37,IF(B40<80,B40*$P$38+A40*$Q$38,IF(B40<150,B40*$P$39+A40*$Q$39,IF(B40<250,B40*$P$40+A40*$Q$40,IF(B40<500,B40*$P$41+A40*$Q$41,B40*$P$42+A40*$Q$42))))) -> 78,494 | H40: =(J40*$T$37+K40*$T$38+L40*$T$39) -> 113,648 | J40: 169.14 | K40: 8.86 | L40: 15.000 | N40: 150-249 | O40: 33926.25 | P40: 821.25 | Q40: 706.25
A41: 148 | B41: 94 | C41: 500 | D41: =SUM(F41:H41) -> 497,696 | F41: 12,654 | G41: 195,000 | H41: =(J41*$T$37+K41*$T$38+L41*$T$39) -> 290,042 | J41: 442.912 | K41: 18.229 | L41: 38.859 | N41: 250-499 | O41: 80312.5 | P41: 636.25 | Q41: 706.25
A42: 295 | B42: 197 | C42: 1000 | D42: =SUM(F42:H42) -> 976,018 | F42: 33,926 | G42: 370,130 | H42: =(J42*$T$37+K42*$T$38+L42*$T$39) -> 571,962 | J42: 891.47 | K42: 28.53 | L42: 80.000 | N42: >500 | O42: 176100 | P42: 445 | Q42: 706.25

Sheet Kungsör
A1: Prisexempel 2025- Kungsör
A3: Här ser du prisexempel fjärrvärmekostnad för småhus, flerbostadshus, lokaler och samfälligheter. Alla summor är inkl.moms.
A5: Kategori Småhus Kungsör
D7: Vinter | E7: Vår/Höst | G7: Sommar
A8: Rörligt Pris | D8: 945 | E8: 745 | F8: 460 | G8: 380 | H8: Kr/MWh
A10: Fast Småhus | F10: 5,580 | H10: Kr/år
A12: Årlig fbr (MWh) | C12: Total årskostnad | E12: Varav fast del | H12: Varav rörlig del | M12: Fördelningsnyckel
M13: Vinter | N13: Vår/Höst | O13: Sommar
A14: 15 | C14: =E14+H14 -> 17,924 | E14: =$F$10 -> 5,580 | H14: =A14*$M$14*$D$8+A14*$N$14*$E$8+A14*$O$14*$G$8 -> 12,344 | L14: Småhus | M14: 47.4% | N14: 47.9% | O14: 4.7%
A15: 20 | C15: =E15+H15 -> 22,038 | E15: =$F$10 -> 5,580 | H15: =A15*$M$14*$D$8+A15*$N$14*$E$8+A15*$O$14*$G$8 -> 16,458
A16: 30 | C16: =E16+H16 -> 30,267 | E16: 5,580 | H16: =A16*$M$14*$D$8+A16*$N$14*$E$8+A16*$O$14*$G$8 -> 24,687
A17: 40 | C17: =E17+H17 -> 38,496 | E17: 5,580 | H17: =A17*$M$14*$D$8+A17*$N$14*$E$8+A17*$O$14*$G$8 -> 32,916
A19: Kategori Flerbostadshus Kungsör | H19: 1900
A20: MAX Effekt | B20: BAS Effekt | C20: Årlig fbr (MWh) | D20: Total årskostnad | F20: Varav fast del | H20: Varav rörlig del | N20: 10-24 | O20: 452.5 | P20: 1421.25 | Q20: 856.25 | S20: Bas | T20: 605
F21: Fast avg | G21: Ansleffektavgift | J21: Bas | K21: Spets | L21: Sommar | N21: 25-79 | O21: 3033.75 | P21: 1318.75 | Q21: 856.25 | S21: Spets | T21: 1530
A22: 24 | B22: 14 | C22: 80 | D22: =SUM(F22:H22) -> 92,055 | F22: =IF(B22<25,$O$20,IF(B22<80,$O$21,IF(B22<150,$O$22,IF(B22<250,$O$23,IF(B22<500,$O$24,$O$25))))) -> 453 | G22: =IF(B22<25,B22*$P$20+A22*$Q$20,IF(B22<80,B22*$P$21+A22*$Q$21,IF(B22<150,B22*$P$22+A22*$Q$22,IF(B22<250,B22*$P$23+A22*$Q$23,IF(B22<500,B22*$P$24+A22*$Q$24,B22*$P$25+A22*$Q$25))))) -> 40,448 | H22: =(J22*$T$20+K22*$T$21+L22*$T$22) -> 51,155 | J22: 69.291 | K22: 4.491 | L22: 6.218 | N22: 80-149 | O22: 14072.5 | P22: 1181.25 | Q22: 856.25 | S22: Sommar | T22: 380
A23: 57 | B23: 36 | C23: 193 | D23: =SUM(F23:H23) -> 219,571 | F23: =IF(B23<25,$O$20,IF(B23<80,$O$21,IF(B23<150,$O$22,IF(B23<250,$O$23,IF(B23<500,$O$24,$O$25))))) -> 3,034 | G23: =IF(B23<25,B23*$P$20+A23*$Q$20,IF(B23<80,B23*$P$21+A23*$Q$21,IF(B23<150,B23*$P$22+A23*$Q$22,IF(B23<250,B23*$P$23+A23*$Q$23,IF(B23<500,B23*$P$24+A23*$Q$24,B23*$P$25+A23*$Q$25))))) -> 96,281 | H23: =(J23*$T$20+K23*$T$21+L23*$T$22) -> 120,256 | J23: 170.577 | K23: 7.423 | L23: 15.000 | N23: 150-249 | O23: 39480 | P23: 1012.5 | Q23: 856.25
A24: 148 | B24: 95 | C24: 500 | D24: =SUM(F24:H24) -> 562,438 | F24: =IF(B24<25,$O$20,IF(B24<80,$O$21,IF(B24<150,$O$22,IF(B24<250,$O$23,IF(B24<500,$O$24,$O$25))))) -> 14,073 | G24: 238,944 | H24: =(J24*$T$20+K24*$T$21+L24*$T$22) -> 309,422 | J24: 444.206 | K24: 16.935 | L24: 38.859 | N24: 250-499 | O24: 98075 | P24: 778.75 | Q24: 856.25
A25: 295 | B25: 197 | C25: 1000 | D25: =SUM(F25:H25) -> 1,104,927 | F25: =IF(B25<25,$O$20,IF(B25<80,$O$21,IF(B25<150,$O$22,IF(B25<250,$O$23,IF(B25<500,$O$24,$O$25))))) -> 39,480 | G25: 452,056 | H25: =(J25*$T$20+K25*$T$21+L25*$T$22) -> 613,390 | J25: 891.47 | K25: 28.53 | L25: 80.000 | N25: >500 | O25: 212018.75 | P25: 551.25 | Q25: 856.25
A27: Kategori Lokaler Kungsör | H27: 1700
A28: Ansl effekt | B28: BAS Effekt | C28: Årlig fbr (MWh) | D28: Total årskostnad | F28: Varav fast del | H28: Varav rörlig del | N28: 10-24 | O28: 452.5 | P28: 1421.25 | Q28: 856.25 | S28: Bas | T28: 605
F29: Fast avg | G29: Ansleffektavgift | J29: Bas | K29: Spets | L29: Sommar | N29: 25-79 | O29: 3033.75 | P29: 1318.75 | Q29: 856.25 | S29: Spets | T29: 1530
A30: 24 | B30: 14 | C30: 80 | D30: =SUM(F30:H30) -> 92,055 | F30: =IF(B30<25,$O$28,IF(B30<80,$O$29,IF(B30<150,$O$30,IF(B30<250,$O$31,IF(B30<500,$O$32,$O$33))))) -> 453 | G30: =IF(B30<25,B30*$P$28+A30*$Q$28,IF(B30<80,B30*$P$29+A30*$Q$29,IF(B30<150,B30*$P$30+A30*$Q$30,IF(B30<250,B30*$P$31+A30*$Q$31,IF(B30<500,B30*$P$32+A30*$Q$32,B30*$P$33+A30*$Q$33))))) -> 40,448 | H30: =(J30*$T$28+K30*$T$29+L30*$T$30) -> 51,155 | J30: 69.291 | K30: 4.491 | L30: 6.218 | N30: 80-149 | O30: 14072.5 | P30: 1181.25 | Q30: 856.25 | S30: Sommar | T30: 380
A31: 57 | B31: 36 | C31: 193 | D31: =SUM(F31:H31) -> 219,571 | F31: =IF(B31<25,$O$28,IF(B31<80,$O$29,IF(B31<150,$O$30,IF(B31<250,$O$31,IF(B31<500,$O$32,$O$33))))) -> 3,034 | G31: =IF(B31<25,B31*$P$28+A31*$Q$28,IF(B31<80,B31*$P$29+A31*$Q$29,IF(B31<150,B31*$P$30+A31*$Q$30,IF(B31<250,B31*$P$31+A31*$Q$31,IF(B31<500,B31*$P$32+A31*$Q$32,B31*$P$33+A31*$Q$33))))) -> 96,281 | H31: =(J31*$T$28+K31*$T$29+L31*$T$30) -> 120,256 | J31: 170.577 | K31: 7.423 | L31: 15.000 | N31: 150-249 | O31: 39480 | P31: 1012.5 | Q31: 856.25
A32: 148 | B32: 95 | C32: 500 | D32: =SUM(F32:H32) -> 562,438 | F32: 14,073 | G32: 238,944 | H32: =(J32*$T$28+K32*$T$29+L32*$T$30) -> 309,422 | J32: 444.206 | K32: 16.935 | L32: 38.859 | N32: 250-499 | O32: 98075 | P32: 778.75 | Q32: 856.25
A33: 295 | B33: 197 | C33: 1000 | D33: =SUM(F33:H33) -> 1,104,927 | F33: =IF(B33<25,$O$28,IF(B33<80,$O$29,IF(B33<150,$O$30,IF(B33<250,$O$31,IF(B33<500,$O$32,$O$33))))) -> 39,480 | G33: 452,056 | H33: =(J33*$T$28+K33*$T$29+L33*$T$30) -> 613,390 | J33: 891.47 | K33: 28.53 | L33: 80.000 | N33: >500 | O33: 212018.75 | P33: 551.25 | Q33: 856.25

Sheet Surahammar
A1: Prisexempel 2025- Surahammar
A3: Här ser du prisexempel fjärrvärmekostnad för småhus, flerbostadshus, lokaler och samfälligheter. Alla summor är inkl.moms.
A5: Kategori Småhus Surahammar
D7: Vinter | E7: Vår/Höst | G7: Sommar
A8: Rörligt Pris | D8: 975 | E8: 780 | F8: 460 | G8: 265 | H8: Kr/MWh
A10: Fast Småhus | F10: 5,580 | H10: Kr/år
A12: Årlig fbr (MWh) | C12: Total årskostnad | E12: Varav fast del | H12: Varav rörlig del | M12: Fördelningsnyckel
M13: Vinter | N13: Vår/Höst | O13: Sommar
A14: 15 | C14: =E14+H14 -> 18,083 | E14: =$F$10 -> 5,580 | H14: =A14*$M$14*$D$8+A14*$N$14*$E$8+A14*$O$14*$G$8 -> 12,503 | L14: Småhus | M14: 43.6% | N14: 50.3% | O14: 6.1%
A15: 20 | C15: =E15+H15 -> 22,251 | E15: =$F$10 -> 5,580 | H15: =A15*$M$14*$D$8+A15*$N$14*$E$8+A15*$O$14*$G$8 -> 16,671
A16: 30 | C16: =E16+H16 -> 30,587 | E16: =$F$10 -> 5,580 | H16: =A16*$M$14*$D$8+A16*$N$14*$E$8+A16*$O$14*$G$8 -> 25,007
A17: 40 | C17: =E17+H17 -> 38,922 | E17: =$F$10 -> 5,580 | H17: =A17*$M$14*$D$8+A17*$N$14*$E$8+A17*$O$14*$G$8 -> 33,342
A19: Kategori Flerbostadshus Surahammar | H19: 1900
A20: MAX Effekt | B20: BAS Effekt | C20: Årlig fbr (MWh) | D20: Total årskostnad | F20: Varav fast del | H20: Varav rörlig del | N20: 10-24 | O20: 562.5 | P20: 1637.5 | Q20: 912.5 | S20: Bas | T20: 620
F21: Fast avg | G21: Ansleffektavgift | J21: Bas | K21: Spets | L21: Sommar | N21: 25-79 | O21: 3180 | P21: 1533.75 | Q21: 912.5 | S21: Spets | T21: 1550
A22: 24 | B22: 14 | C22: 80 | D22: =SUM(F22:H22) -> 96,863 | F22: =IF(B22<25,$O$20,IF(B22<80,$O$21,IF(B22<150,$O$22,IF(B22<250,$O$23,IF(B22<500,$O$24,$O$25))))) -> 563 | G22: =IF(B22<25,B22*$P$20+A22*$Q$20,IF(B22<80,B22*$P$21+A22*$Q$21,IF(B22<150,B22*$P$22+A22*$Q$22,IF(B22<250,B22*$P$23+A22*$Q$23,IF(B22<500,B22*$P$24+A22*$Q$24,B22*$P$25+A22*$Q$25))))) -> 44,825 | H22: =(J22*$T$20+K22*$T$21+L22*$T$22) -> 51,476 | J22: 69.291 | K22: 4.491 | L22: 6.218 | N22: 80-149 | O22: 14320 | P22: 1395 | Q22: 912.5 | S22: Sommar | T22: 250
A23: 57 | B23: 34 | C23: 193 | D23: =SUM(F23:H23) -> 231,148 | F23: =IF(B23<25,$O$20,IF(B23<80,$O$21,IF(B23<150,$O$22,IF(B23<250,$O$23,IF(B23<500,$O$24,$O$25))))) -> 3,180 | G23: =IF(B23<25,B23*$P$20+A23*$Q$20,IF(B23<80,B23*$P$21+A23*$Q$21,IF(B23<150,B23*$P$22+A23*$Q$22,IF(B23<250,B23*$P$23+A23*$Q$23,IF(B23<500,B23*$P$24+A23*$Q$24,B23*$P$25+A23*$Q$25))))) -> 104,160 | H23: =(J23*$T$20+K23*$T$21+L23*$T$22) -> 123,808 | J23: 167.572 | K23: 10.428 | L23: 15.000 | N23: 150-249 | O23: 40103.75 | P23: 1223.75 | Q23: 912.5
A24: 148 | B24: 91 | C24: 500 | D24: =SUM(F24:H24) -> 592,826 | F24: =IF(B24<25,$O$20,IF(B24<80,$O$21,IF(B24<150,$O$22,IF(B24<250,$O$23,IF(B24<500,$O$24,$O$25))))) -> 14,320 | G24: 261,995 | H24: =(J24*$T$20+K24*$T$21+L24*$T$22) -> 316,511 | J24: 438.68 | K24: 22.461 | L24: 38.859 | N24: 250-499 | O24: 99015 | P24: 988.75 | Q24: 912.5
A25: 295 | B25: 188 | C25: 1000 | D25: =SUM(F25:H25) -> 1,166,477 | F25: =IF(B25<25,$O$20,IF(B25<80,$O$21,IF(B25<150,$O$22,IF(B25<250,$O$23,IF(B25<500,$O$24,$O$25))))) -> 40,104 | G25: 499,253 | H25: =(J25*$T$20+K25*$T$21+L25*$T$22) -> 627,121 | J25: 880.515 | K25: 39.485 | L25: 80.000 | N25: >500 | O25: 214215 | P25: 758.75 | Q25: 912.5
A27: Kategori Lokaler Surahammar | H27: 1700
A28: Ansl effekt | B28: BAS Effekt | C28: Årlig fbr (MWh) | D28: Total årskostnad | F28: Varav fast del | H28: Varav rörlig del | N28: 10-24 | O28: 562.5 | P28: 1637.5 | Q28: 912.5 | S28: Bas | T28: 620
F29: Fast avg | G29: Ansleffektavgift | J29: Bas | K29: Spets | L29: Sommar | N29: 25-79 | O29: 3180 | P29: 1533.75 | Q29: 912.5 | S29: Spets | T29: 1550
A30: 24 | B30: 14 | C30: 80 | D30: =SUM(F30:H30) -> 96,863 | F30: =IF(B30<25,$O$28,IF(B30<80,$O$29,IF(B30<150,$O$30,IF(B30<250,$O$31,IF(B30<500,$O$32,$O$33))))) -> 563 | G30: =IF(B30<25,B30*$P$28+A30*$Q$28,IF(B30<80,B30*$P$29+A30*$Q$29,IF(B30<150,B30*$P$30+A30*$Q$30,IF(B30<250,B30*$P$31+A30*$Q$31,IF(B30<500,B30*$P$32+A30*$Q$32,B30*$P$33+A30*$Q$33))))) -> 44,825 | H30: =(J30*$T$28+K30*$T$29+L30*$T$30) -> 51,476 | J30: 69.291 | K30: 4.491 | L30: 6.218 | N30: 80-149 | O30: 14320 | P30: 1395 | Q30: 912.5 | S30: Sommar | T30: 250
A31: 57 | B31: 34 | C31: 193 | D31: =SUM(F31:H31) -> 231,148 | F31: =IF(B31<25,$O$28,IF(B31<80,$O$29,IF(B31<150,$O$30,IF(B31<250,$O$31,IF(B31<500,$O$32,$O$33))))) -> 3,180 | G31: =IF(B31<25,B31*$P$28+A31*$Q$28,IF(B31<80,B31*$P$29+A31*$Q$29,IF(B31<150,B31*$P$30+A31*$Q$30,IF(B31<250,B31*$P$31+A31*$Q$31,IF(B31<500,B31*$P$32+A31*$Q$32,B31*$P$33+A31*$Q$33))))) -> 104,160 | H31: =(J31*$T$28+K31*$T$29+L31*$T$30) -> 123,808 | J31: 167.572 | K31: 10.428 | L31: 15.000 | N31: 150-249 | O31: 40103.75 | P31: 1223.75 | Q31: 912.5
A32: 148 | B32: 91 | C32: 500 | D32: =SUM(F32:H32) -> 592,826 | F32: 14,320 | G32: 261,995 | H32: =(J32*$T$28+K32*$T$29+L32*$T$30) -> 316,511 | J32: 438.68 | K32: 22.461 | L32: 38.859 | N32: 250-499 | O32: 99015 | P32: 988.75 | Q32: 912.5
A33: 295 | B33: 188 | C33: 1000 | D33: =SUM(F33:H33) -> 1,166,477 | F33: =IF(B33<25,$O$28,IF(B33<80,$O$29,IF(B33<150,$O$30,IF(B33<250,$O$31,IF(B33<500,$O$32,$O$33))))) -> 40,104 | G33: 499,253 | H33: =(J33*$T$28+K33*$T$29+L33*$T$30) -> 627,121 | J33: 880.515 | K33: 39.485 | L33: 80.000 | N33: >500 | O33: 214215 | P33: 758.75 | Q33: 912.5
